fUSD/lending_fUSD_20250313
["ID","MTS","AMOUNT","RATE_DAILY","PERIOD"]
[356066662,1741877519351,-745.19,0.00028449,18]
[356066663,1741877519361,-500.0,0.00028449,18]
[356066664,1741877519371,-500.0,0.00028449,18]
[356066665,1741877519380,-654.08,0.00028449,18]
[356066666,1741877519390,-500.0,0.00028449,18]
[356066667,1741877519399,-500.0,0.00028449,18]
[356066668,1741877519409,-670.08,0.00028449,18]
[356066669,1741877519418,-500.0,0.00028449,18]
[356066670,1741877519427,-500.0,0.00028449,18]
[356066671,1741877519436,-514.25,0.00028449,18]
[356066672,1741877519445,-500.0,0.00028449,18]
[356066673,1741877519455,-556.23,0.00028449,18]
[356066674,1741877519464,-500.0,0.00028449,18]
[356066675,1741877519474,-500.0,0.00028449,18]
[356066676,1741877519483,-500.0,0.00028449,18]
[356066677,1741877519493,-500.0,0.00028449,18]
[356066678,1741877519504,-500.0,0.00028449,18]
[356066679,1741877519513,-500.0,0.00028449,18]
[356066680,1741877519523,-583.61,0.00028449,18]
[356066681,1741877519532,-500.0,0.00028449,18]
[356066682,1741877519542,-500.0,0.00028449,18]
[356066683,1741877519551,-500.0,0.00028449,18]
[356066684,1741877519561,-500.0,0.00028449,18]
[356066685,1741877519571,-500.0,0.00028449,18]
[356066686,1741877519580,-500.0,0.0002845,18]
[356066687,1741877519590,-920.42,0.0002845,18]
[356066688,1741877519599,-920.42,0.0002845,18]
[356066689,1741877519608,-806.85,0.0002845,18]
[356066690,1741877519618,-806.85,0.0002845,18]
[356066691,1741877519627,-500.0,0.0002845,18]
[356066692,1741877519637,-500.0,0.0002845,18]
[356066693,1741877519646,-612.98,0.0002845,18]
[356066694,1741877519655,-612.98,0.0002845,18]
[356066695,1741877519664,-500.0,0.0002845,18]
[356066696,1741877519674,-500.0,0.0002845,18]
[356066697,1741877519684,-654.17,0.0002845,18]
[356066698,1741877519693,-654.17,0.0002845,18]
[356066699,1741877519702,-500.0,0.0002845,18]
[356066700,1741877519711,-500.0,0.0002845,18]
[356066701,1741877519721,-500.0,0.0002845,18]
[356066702,1741877519730,-500.0,0.0002845,18]
[356066703,1741877519740,-541.31,0.0002845,18]
[356066704,1741877519750,-279.94756824,0.0002845,18]
[356066705,1741877519759,-500.0,0.0002845,18]
[356066706,1741877519769,-500.0,0.0002845,18]
[356066707,1741877519778,-500.0,0.0002845,18]
[356066708,1741877519787,-231.01619435,0.0002845,18]
[356066709,1741877519797,-500.0,0.0002845,18]
[356066710,1741877519806,-829.63,0.0002845,18]
[356066711,1741877519816,-829.63,0.0002845,18]
[356066712,1741877519827,-500.0,0.0002845,18]
[356066713,1741877519837,-628.41,0.0002845,18]
[356066714,1741877519850,-628.41,0.0002845,18]
[356066715,1741877519859,-500.0,0.0002845,18]
[356066716,1741877519868,-500.0,0.0002845,18]
[356066717,1741877519878,-500.0,0.0002845,18]
[356066718,1741877519889,-500.0,0.0002845,18]
[356066719,1741877519898,-500.0,0.0002845,18]
[356066720,1741877519907,-500.0,0.0002845,18]
[356066721,1741877519918,-500.0,0.0002845,18]
[356066722,1741877519928,-500.0,0.0002845,18]
[356066723,1741877519937,-500.0,0.0002845,18]
[356066724,1741877519947,-500.0,0.0002845,18]
[356066725,1741877519957,-590.79,0.0002845,18]
[356066726,1741877519967,-590.79,0.0002845,18]
[356066727,1741877519976,-500.0,0.0002845,18]
[356066728,1741877519987,-500.0,0.0002845,18]
[356066729,1741877519998,-500.0,0.0002845,18]
[356066730,1741877520008,-500.0,0.0002845,18]
[356066731,1741877520018,-500.0,0.0002845,18]
[356066732,1741877520027,-500.0,0.0002845,18]
[356066733,1741877520038,-567.12964462,0.0002845,18]
[356066734,1741877520048,-500.0,0.0002845,18]
[356066735,1741877520058,-500.0,0.0002845,18]
[356066736,1741877520068,-500.0,0.0002845,18]
[356066737,1741877520079,-500.0,0.0002845,18]
[356066738,1741877520090,-520.42,0.0002845,18]
[356066739,1741877520100,-520.42,0.0002845,18]
[356066740,1741877520110,-500.0,0.0002845,18]
[356066741,1741877520121,-1443.64,0.0002845,18]
[356066742,1741877520131,-1443.64,0.0002845,18]
[356066743,1741877520141,-877.63,0.0002845,18]
[356066744,1741877520151,-543.74,0.0002845,18]
[356066745,1741877520162,-543.74,0.0002845,18]
[356066746,1741877520171,-2624.51,0.0002845,18]
[356066747,1741877520181,-2624.51,0.0002845,18]
[356066748,1741877520190,-877.5,0.0002845,18]
[356066749,1741877520199,-877.5,0.0002845,18]
[356066750,1741877520209,-612.61,0.0002845,18]
[356066751,1741877520220,-612.61,0.0002845,18]
[356066752,1741877520229,-654.97,0.0002845,18]
[356066753,1741877520239,-546.0,0.0002845,18]
[356066754,1741877520249,-546.0,0.0002845,18]
[356066755,1741877520259,-653.78,0.0002845,18]
[356066756,1741877520269,-653.78,0.0002845,18]
[356066757,1741877520278,-500.0,0.0002845,18]
[356066758,1741877520288,-500.0,0.0002845,18]
[356066759,1741877520299,-512.35,0.0002845,18]
[356066760,1741877520309,-512.35,0.0002845,18]
[356066761,1741877520319,-630.4,0.0002845,18]
[356066762,1741877520333,-630.4,0.0002845,18]
[356066763,1741877520343,-500.0,0.0002845,18]
[356066764,1741877520353,-616.45736902,0.0002845,18]
[356066765,1741877520364,-631.05,0.0002845,18]
[356066766,1741877520374,-631.05,0.0002845,18]
[356066767,1741877520384,-589.78,0.0002845,18]
[356066768,1741877520394,-589.78,0.0002845,18]
[356066769,1741877520403,-1049.42,0.0002845,18]
[356066770,1741877520413,-1049.42,0.0002845,18]
[356066771,1741877520422,-630.74,0.0002845,18]
[356066772,1741877520432,-630.74,0.0002845,18]
[356066773,1741877520442,-500.0,0.0002845,18]
[356066774,1741877520451,-634.06994932,0.0002845,18]
[356066775,1741877520461,-497.17194497,0.0002845,18]
[356066776,1741877520470,-500.0,0.0002845,18]
[356066777,1741877520480,-500.0,0.0002845,18]
[356066778,1741877520489,-6022.95,0.0002845,2]
[356066779,1741877520498,-6022.95,0.0002845,2]
[356066780,1741877520507,-1152.01,0.0002845,18]
[356066781,1741877520517,-1254.42,0.0002845,18]
[356066782,1741877520527,-1254.42,0.0002845,18]
[356066783,1741877520536,-1191.84,0.0002845,18]
[356066784,1741877520545,-1191.84,0.0002845,18]
[356066785,1741877520555,-778.61,0.0002845,18]
[356066786,1741877520564,-778.61,0.0002845,18]
[356066787,1741877520576,-732.88,0.0002845,18]
[356066788,1741877520586,-732.88,0.0002845,18]
[356066789,1741877520595,-611.51,0.0002845,18]
[356066790,1741877520605,-611.51,0.0002845,18]
[356066791,1741877520615,-943.15,0.0002845,18]
[356066792,1741877520625,-943.15,0.0002845,18]
[356066793,1741877520635,-1495.77,0.0002845,18]
[356066794,1741877520644,-968.62,0.0002845,18]
[356066795,1741877520654,-517.25,0.0002845,18]
[356066796,1741877520663,-968.62,0.0002845,18]
[356066797,1741877520673,-517.25,0.0002845,18]
[356066798,1741877520683,-1936.13,0.0002845,18]
[356066799,1741877520693,-1936.13,0.0002845,18]
[356066800,1741877520703,-614.74038283,0.0002845,18]
[356066801,1741877520712,-500.0,0.0002845,18]
[356066802,1741877520722,-592.53,0.0002845,18]
[356066803,1741877520732,-296.34905481,0.0002845,18]
[356066804,1741877520741,-592.53,0.0002845,18]
[356066805,1741877520751,-500.0,0.0002845,18]
[356066806,1741877520760,-2476.29,0.0002845,18]
[356066807,1741877520770,-2562.48,0.0002845,18]
[356066808,1741877520779,-2562.48,0.0002845,18]
[356066809,1741877520788,-1591.35,0.0002845,18]
[356066810,1741877520798,-1591.35,0.0002845,18]
[356066811,1741877520807,-2233.91,0.0002845,18]
[356066812,1741877520816,-2233.91,0.0002845,18]
[356066813,1741877520827,-1531.67,0.0002845,18]
[356066814,1741877520836,-1531.67,0.0002845,18]
[356066815,1741877520846,-500.0,0.0002845,18]
[356066816,1741877520858,-500.0,0.0002845,18]
[356066817,1741877520868,-917.98,0.0002845,18]
[356066818,1741877520877,-917.98,0.0002845,18]
[356066819,1741877520887,-774.11,0.0002845,18]
[356066820,1741877520898,-774.11,0.0002845,18]
[356066821,1741877520907,-584.93,0.0002845,18]
[356066822,1741877520917,-584.93,0.0002845,18]
[356066823,1741877520927,-3142.78,0.0002845,18]
[356066824,1741877520940,-650.5,0.0002845,18]
[356066825,1741877520950,-3142.78,0.0002845,18]
[356066826,1741877520960,-650.5,0.0002845,18]
[356066827,1741877520970,-1284.79,0.0002845,18]
[356066828,1741877520979,-1284.79,0.0002845,18]
[356066829,1741877520989,-1328.89,0.0002845,18]
[356066830,1741877520998,-1328.89,0.0002845,18]
[356066831,1741877521008,-673.07,0.0002845,18]
[356066832,1741877521017,-673.07,0.0002845,18]
[356066833,1741877521027,-750.81,0.0002845,18]
[356066834,1741877521036,-750.81,0.0002845,18]
[356066835,1741877521046,-500.0,0.0002845,18]
[356066836,1741877521056,-349.64273315,0.0002845,18]
[356066837,1741877521066,-500.0,0.0002845,18]
[356066838,1741877521077,-500.0,0.0002845,18]
[356066839,1741877521087,-1294.14,0.0002845,18]
[356066840,1741877521096,-1294.14,0.0002845,18]
[356066841,1741877521309,-354.83,0.0002845,7]
[356066842,1741877521319,-354.83,0.0002845,7]
[356066843,1741877521332,-1372.56,0.0002845,18]
[356066844,1741877521341,-1372.56,0.0002845,18]
[356066845,1741877521351,-1026.51,0.0002845,18]
[356066846,1741877521361,-1026.51,0.0002845,18]
[356066847,1741877521371,-1799.08,0.0002845,18]
[356066848,1741877521380,-1799.08,0.0002845,18]
[356066849,1741877521390,-607.97,0.0002845,10]
[356066850,1741877521401,-607.97,0.0002845,10]
[356066851,1741877521411,-1149.34,0.0002845,18]
[356066852,1741877521420,-1149.34,0.0002845,18]
[356066853,1741877521430,-306.26581617,0.0002845,18]
[356066854,1741877521440,-500.0,0.0002845,18]
[356066855,1741877521450,-3134.61,0.0002845,18]
[356066856,1741877521460,-3134.61,0.0002845,18]
[356066857,1741877521469,-500.0,0.0002845,18]
[356066858,1741877521479,-500.0,0.0002845,18]
[356066859,1741877521489,-500.0,0.0002845,18]
[356066860,1741877521499,-500.0,0.0002845,18]
[356066861,1741877521508,-500.0,0.0002845,18]
[356066862,1741877521518,-500.0,0.0002845,18]
[356066863,1741877521528,-500.0,0.0002845,18]
[356066864,1741877521537,-500.0,0.0002845,18]
[356066865,1741877521547,-1839.29,0.0002845,18]
[356066866,1741877521556,-1839.29,0.0002845,18]
[356066867,1741877521566,-795.32,0.0002845,18]
[356066868,1741877521576,-795.32,0.0002845,18]
[356066869,1741877521586,-500.0,0.0002845,18]
[356066870,1741877521595,-1131.1,0.0002845,18]
[356066871,1741877521606,-1131.1,0.0002845,18]
[356066872,1741877521616,-500.0,0.0002845,18]
[356066873,1741877521626,-500.0,0.0002845,18]
[356066874,1741877521635,-805.12,0.0002845,18]
[356066875,1741877521645,-805.12,0.0002845,18]
[356066876,1741877521654,-500.0,0.0002845,18]
[356066877,1741877521663,-500.0,0.0002845,18]
[356066878,1741877521673,-2736.88,0.0002845,18]
[356066879,1741877521683,-3749.8,0.0002845,18]
[356066880,1741877521693,-3749.8,0.0002845,18]
[356066881,1741877521702,-2736.88,0.0002845,18]
[356066882,1741877521712,-500.0,0.0002845,18]
[356066883,1741877521722,-500.0,0.0002845,18]
[356066884,1741877521732,-317.20550128,0.0002845,18]
[356066885,1741877521742,-503.93,0.0002845,18]
[356066886,1741877521751,-500.0,0.0002845,18]
[356066887,1741877521762,-500.0,0.0002845,18]
[356066888,1741877521771,-691.19,0.0002845,18]
[356066889,1741877521782,-691.19,0.0002845,18]
[356066890,1741877521791,-500.0,0.0002845,18]
[356066891,1741877521800,-417.45099708,0.0002845,18]
[356066892,1741877521810,-565.02,0.0002845,18]
[356066893,1741877521819,-565.02,0.0002845,18]
[356066894,1741877521829,-500.0,0.0002845,18]
[356066895,1741877521839,-500.0,0.0002845,18]
[356066896,1741877521855,-617.67,0.0002845,18]
[356066897,1741877521865,-617.67,0.0002845,18]
[356066898,1741877521874,-500.0,0.0002845,18]
[356066899,1741877521885,-2839.76,0.0002845,18]
[356066900,1741877521894,-465.69775803,0.0002845,18]
[356066901,1741877521903,-2839.76,0.0002845,18]
[356066902,1741877521913,-1507.84,0.0002845,18]
[356066903,1741877521923,-1507.84,0.0002845,18]
[356066904,1741877521934,-749.62,0.0002845,18]
[356066905,1741877521944,-749.62,0.0002845,18]
[356066906,1741877521954,-580.97,0.0002845,18]
[356066907,1741877521964,-580.97,0.0002845,18]
[356066908,1741877521973,-500.0,0.0002845,18]
[356066909,1741877521984,-500.0,0.0002845,18]
[356066910,1741877521994,-267.05048228,0.0002845,18]
[356066911,1741877522004,-591.54,0.0002845,18]
[356066912,1741877522014,-591.54,0.0002845,18]
[356066913,1741877522023,-589.44,0.0002845,18]
[356066914,1741877522033,-589.44,0.0002845,18]
[356066915,1741877522042,-500.0,0.00028451,18]
[356066916,1741877522051,-500.0,0.00028451,18]
[356066917,1741877522061,-502.34,0.00028451,18]
[356066918,1741877522070,-502.34,0.00028451,18]
[356066919,1741877522082,-500.0,0.00028451,18]
[356066920,1741877522091,-500.0,0.00028451,18]
[356066921,1741877522101,-500.0,0.00028451,18]
[356066922,1741877522111,-500.0,0.00028451,18]
[356066923,1741877522120,-500.0,0.00028451,18]
[356066924,1741877522130,-500.0,0.00028451,18]
[356066925,1741877522139,-500.0,0.00028451,18]
[356066926,1741877522149,-500.0,0.00028451,18]
[356066927,1741877522158,-500.0,0.00028451,18]
[356066928,1741877522167,-500.0,0.00028451,18]
[356066929,1741877522176,-500.0,0.00028451,18]
[356066930,1741877522186,-500.0,0.00028451,18]
[356066931,1741877522195,-500.0,0.00028451,18]
[356066932,1741877522205,-500.0,0.00028451,18]
[356066933,1741877522215,-500.0,0.00028451,18]
[356066934,1741877522224,-560.78478063,0.00028451,18]
[356066935,1741877522234,-810.74,0.00028451,18]
[356066936,1741877522244,-810.74,0.00028451,18]
[356066937,1741877522254,-500.0,0.00028451,18]
[356066938,1741877522263,-500.0,0.00028451,18]
[356066939,1741877522273,-500.0,0.00028451,18]
[356066940,1741877522283,-500.0,0.00028451,18]
[356066941,1741877522295,-561.76,0.00028451,18]
[356066942,1741877522304,-561.76,0.00028451,18]
[356066943,1741877522314,-500.0,0.00028451,18]
[356066944,1741877522324,-590.71262171,0.00028451,18]
[356066945,1741877522334,-640.13,0.00028451,18]
[356066946,1741877522344,-640.13,0.00028451,18]
[356066947,1741877522353,-500.0,0.00028451,18]
[356066948,1741877522363,-500.0,0.00028451,18]
[356066949,1741877522372,-471.42564182,0.00028451,18]
[356066950,1741877522381,-500.0,0.00028451,18]
[356066951,1741877522391,-523.76,0.00028451,18]
[356066952,1741877522400,-500.0,0.00028451,18]
[356066953,1741877522410,-523.76,0.00028451,18]
[356066954,1741877522419,-500.0,0.00028451,18]
[356066955,1741877522428,-500.0,0.00028451,18]
[356066956,1741877522437,-189.1042579,0.00028451,18]
[356066957,1741877522447,-500.0,0.00028451,18]
[356066958,1741877522456,-500.0,0.00028451,18]
[356066959,1741877522465,-538.91,0.00028451,18]
[356066960,1741877522475,-538.91,0.00028451,18]
[356066961,1741877522484,-500.0,0.00028451,18]
[356066962,1741877522494,-500.0,0.00028451,18]
[356066963,1741877522503,-539.92,0.00028451,18]
[356066964,1741877522512,-539.92,0.00028451,18]
[356066965,1741877522523,-500.0,0.00028451,18]
[356066966,1741877522532,-500.0,0.00028451,18]
[356066967,1741877522541,-727.13,0.00028451,18]
[356066968,1741877522551,-500.0,0.00028451,18]
[356066969,1741877522561,-727.13,0.00028451,18]
[356066970,1741877522571,-500.0,0.00028451,18]
[356066971,1741877522581,-500.0,0.00028451,18]
[356066972,1741877522590,-500.0,0.00028451,18]
[356066973,1741877522600,-500.0,0.00028451,18]
[356066974,1741877522609,-281.93252144,0.00028451,18]
[356066975,1741877522619,-557.95,0.00028451,18]
[356066976,1741877522628,-557.95,0.00028451,18]
[356066977,1741877522637,-500.0,0.00028451,18]
[356066978,1741877522646,-500.0,0.00028451,18]
[356066979,1741877522655,-500.0,0.00028451,18]
[356066980,1741877522664,-500.0,0.00028451,18]
[356066981,1741877522674,-621.92,0.00028451,18]
[356066982,1741877522684,-621.92,0.00028451,18]
[356066983,1741877522693,-500.0,0.00028451,18]
[356066984,1741877522703,-500.0,0.00028451,18]
[356066985,1741877522712,-692.0,0.00028451,18]
[356066986,1741877522722,-692.0,0.00028451,18]
[356066987,1741877522731,-500.0,0.00028451,18]
[356066988,1741877522741,-500.0,0.00028451,18]
[356066989,1741877522751,-622.0,0.00028451,18]
[356066990,1741877522761,-622.0,0.00028451,18]
[356066991,1741877522770,-629.04,0.00028451,18]
[356066992,1741877522780,-629.04,0.00028451,18]
[356066993,1741877522790,-500.0,0.00028451,18]
[356066994,1741877522799,-500.0,0.00028451,18]
[356066995,1741877522808,-618.22,0.00028451,18]
[356066996,1741877522818,-618.22,0.00028451,18]
[356066997,1741877522830,-500.0,0.00028451,18]
[356066998,1741877522840,-500.0,0.00028451,18]
[356066999,1741877522850,-500.0,0.00028451,18]
[356067000,1741877522860,-500.0,0.00028451,18]
[356067001,1741877522869,-561.75,0.00028451,18]
[356067002,1741877522878,-868.46,0.00028451,18]
[356067003,1741877522887,-561.75,0.00028451,18]
[356067004,1741877522898,-868.46,0.00028451,18]
[356067005,1741877522907,-500.0,0.00028451,18]
[356067006,1741877522916,-500.0,0.00028451,18]
[356067007,1741877522926,-1222.98,0.00028451,18]
[356067008,1741877522936,-1222.98,0.00028451,18]
[356067009,1741877522946,-1173.83,0.00028451,18]
[356067010,1741877522955,-1173.83,0.00028451,18]
[356067011,1741877522965,-638.02,0.00028451,18]
[356067012,1741877522974,-638.02,0.00028451,18]
[356067013,1741877522984,-710.42,0.00028451,18]
[356067014,1741877522993,-710.42,0.00028451,18]
[356067015,1741877523002,-920.42,0.00028451,18]
[356067016,1741877523012,-920.42,0.00028451,18]
[356067017,1741877523021,-568.85,0.00028451,18]
[356067018,1741877523030,-568.85,0.00028451,18]
[356067019,1741877523041,-500.0,0.00028451,18]
[356067020,1741877523051,-500.0,0.00028451,18]
[356067021,1741877523061,-806.85,0.00028451,18]
[356067022,1741877523071,-806.85,0.00028451,18]
[356067023,1741877523082,-500.0,0.00028451,18]
[356067024,1741877523092,-500.0,0.00028451,18]
[356067025,1741877523102,-500.0,0.00028451,18]
[356067026,1741877523112,-500.0,0.00028451,18]
[356067027,1741877523122,-778.43,0.00028451,18]
[356067028,1741877523133,-778.43,0.00028451,18]
[356067029,1741877523142,-500.0,0.00028451,18]
[356067030,1741877523152,-898.3,0.00028451,18]
[356067031,1741877523162,-898.3,0.00028451,18]
[356067032,1741877523172,-500.0,0.00028451,18]
[356067033,1741877523182,-500.0,0.00028451,18]
[356067034,1741877523192,-624.19832074,0.00028451,18]
[356067035,1741877523201,-612.98,0.00028451,18]
[356067036,1741877523211,-612.98,0.00028451,18]
[356067037,1741877523222,-500.0,0.00028451,18]
[356067038,1741877523231,-500.0,0.00028451,18]
[356067039,1741877523241,-500.0,0.00028451,18]
[356067040,1741877523251,-500.0,0.00028451,18]
[356067041,1741877523260,-500.0,0.00028451,18]
[356067042,1741877523271,-500.0,0.00028451,18]
[356067043,1741877523280,-500.0,0.00028451,18]
[356067044,1741877523290,-500.0,0.00028451,18]
[356067045,1741877523300,-649.27,0.00028451,18]
[356067046,1741877523310,-649.27,0.00028451,18]
[356067047,1741877523320,-654.17,0.00028451,18]
[356067048,1741877523331,-654.17,0.00028451,18]
[356067049,1741877523341,-1005.2,0.00028451,18]
[356067050,1741877523351,-1005.2,0.00028451,18]
[356067051,1741877523360,-556.85,0.00028451,18]
[356067052,1741877523370,-556.85,0.00028451,18]
[356067053,1741877523380,-658.91,0.00028451,18]
[356067054,1741877523390,-658.91,0.00028451,18]
[356067055,1741877523399,-675.33,0.00028451,18]
[356067056,1741877523409,-675.33,0.00028451,18]
[356067057,1741877523418,-500.0,0.00028451,18]
[356067058,1741877523428,-597.5765108,0.00028451,18]
[356067059,1741877523438,-798.69,0.00028451,18]
[356067060,1741877523448,-798.69,0.00028451,18]
[356067061,1741877523458,-500.0,0.00028451,18]
[356067062,1741877523467,-500.0,0.00028451,18]
[356067063,1741877523477,-500.0,0.00028451,18]
[356067064,1741877523486,-500.0,0.00028451,18]
[356067065,1741877523496,-500.0,0.00028451,18]
[356067066,1741877523505,-500.0,0.00028451,18]
[356067067,1741877523515,-541.31,0.00028451,18]
[356067068,1741877523525,-541.31,0.00028451,18]
[356067069,1741877523534,-500.0,0.00028451,18]
[356067070,1741877523544,-500.0,0.00028451,18]
[356067071,1741877523553,-598.07,0.00028451,18]
[356067072,1741877523563,-598.07,0.00028451,18]
[356067073,1741877523572,-654.57,0.00028451,18]
[356067074,1741877523582,-654.57,0.00028451,18]
[356067075,1741877523592,-500.0,0.00028451,18]
[356067076,1741877523601,-500.0,0.00028451,18]
[356067077,1741877523611,-500.0,0.00028451,18]
[356067078,1741877523621,-500.0,0.00028451,18]
[356067079,1741877523630,-500.0,0.00028451,18]
[356067080,1741877523640,-500.0,0.00028451,18]
[356067081,1741877523649,-691.39,0.00028451,18]
[356067082,1741877523659,-691.39,0.00028451,18]
[356067083,1741877523668,-719.79,0.00028451,18]
[356067084,1741877523679,-719.79,0.00028451,18]
[356067085,1741877523763,-500.0,0.00028451,18]
[356067086,1741877523774,-500.0,0.00028451,18]
[356067087,1741877523783,-500.0,0.00028451,18]
[356067088,1741877523793,-241.60684322,0.00028451,18]
[356067089,1741877523802,-500.0,0.00028451,18]
[356067090,1741877523812,-500.0,0.00028451,18]
[356067091,1741877523822,-500.0,0.00028451,18]
[356067092,1741877523832,-500.0,0.00028451,18]
[356067093,1741877523843,-543.25,0.00028451,18]
[356067094,1741877523854,-543.25,0.00028451,18]
[356067095,1741877523864,-753.81,0.00028451,18]
[356067096,1741877523875,-753.81,0.00028451,18]
[356067097,1741877523885,-500.0,0.00028451,18]
[356067098,1741877523895,-500.0,0.00028451,18]
[356067099,1741877523904,-829.63,0.00028451,18]
[356067100,1741877523914,-829.63,0.00028451,18]
[356067101,1741877523924,-520.97,0.00028451,18]
[356067102,1741877523934,-520.97,0.00028451,18]
[356067103,1741877523944,-500.0,0.00028451,18]
[356067104,1741877523955,-500.0,0.00028451,18]
[356067105,1741877523964,-500.0,0.00028451,18]
[356067106,1741877523974,-500.0,0.00028451,18]
[356067107,1741877523983,-500.0,0.00028451,18]
[356067108,1741877523992,-500.0,0.00028451,18]
[356067109,1741877524002,-628.41,0.00028451,18]
[356067110,1741877524012,-628.41,0.00028451,18]
[356067111,1741877524021,-500.0,0.00028451,18]
[356067112,1741877524031,-500.0,0.00028451,18]
[356067113,1741877524040,-294.25770544,0.00028451,18]
[356067114,1741877524050,-559.71,0.00028451,18]
[356067115,1741877524060,-559.71,0.00028451,18]
[356067116,1741877524069,-742.58,0.00028451,18]
[356067117,1741877524079,-742.58,0.00028451,18]
[356067118,1741877524089,-554.780531,0.00028451,18]
[356067119,1741877524099,-500.0,0.00028451,18]
[356067120,1741877524109,-235.48880431,0.00028451,18]
[356067121,1741877524119,-500.0,0.00028451,18]
[356067122,1741877524130,-500.0,0.00028451,18]
[356067123,1741877524139,-500.0,0.00028451,18]
[356067124,1741877524149,-500.0,0.00028451,18]
[356067125,1741877524159,-500.0,0.00028451,18]
[356067126,1741877524168,-500.0,0.00028451,18]
[356067127,1741877524178,-597.17,0.00028451,18]
[356067128,1741877524187,-597.17,0.00028451,18]
[356067129,1741877524197,-500.0,0.00028451,18]
[356067130,1741877524207,-500.0,0.00028451,18]
[356067131,1741877524217,-841.6,0.00028451,18]
[356067132,1741877524227,-841.6,0.00028451,18]
[356067133,1741877524237,-863.22,0.00028451,18]
[356067134,1741877524246,-863.22,0.00028451,18]
[356067135,1741877524257,-500.0,0.00028451,18]
[356067136,1741877524267,-500.0,0.00028451,18]
[356067137,1741877524276,-500.0,0.00028451,18]
[356067138,1741877524285,-448.94240172,0.00028451,18]
[356067139,1741877524296,-677.32,0.00028451,18]
[356067140,1741877524306,-677.32,0.00028451,18]
[356067141,1741877524316,-1079.98,0.00028451,18]
[356067142,1741877524325,-1079.98,0.00028451,18]
[356067143,1741877524337,-502.92,0.00028451,18]
[356067144,1741877524347,-502.92,0.00028451,18]
[356067145,1741877524356,-701.64,0.00028451,18]
[356067146,1741877524366,-701.64,0.00028451,18]
[356067147,1741877524376,-500.0,0.00028451,18]
[356067148,1741877524385,-500.0,0.00028451,18]
[356067149,1741877524395,-500.0,0.00028451,18]
[356067150,1741877524404,-500.0,0.00028451,18]
[356067151,1741877524414,-558.34,0.00028451,18]
[356067152,1741877524423,-558.34,0.00028451,18]
[356067153,1741877524433,-500.0,0.00028451,18]
[356067154,1741877524442,-500.0,0.00028451,18]
[356067155,1741877524452,-500.0,0.00028451,18]
[356067156,1741877524462,-500.0,0.00028451,18]
[356067157,1741877524472,-500.0,0.00028451,18]
[356067158,1741877524482,-500.0,0.00028451,18]
[356067159,1741877524491,-590.79,0.00028451,18]
[356067160,1741877524501,-590.79,0.00028451,18]
[356067161,1741877524510,-616.64,0.00028451,18]